bitfinex-derivatives/quotes_BTCF0:USTF0_20210705
["timestamp","ask_amount","ask_price","bid_price","bid_amount"]
[1625505625451,15.48916768,33604.0,33603.0,22.12118731]
[1625505626759,15.48916768,33604.0,33603.0,23.70638273]
[1625505628707,15.48916768,33604.0,33603.0,22.12118731]
[1625505628907,15.48916768,33604.0,33603.0,27.44168731]
[1625505629009,15.48916768,33604.0,33603.0,22.12118731]
[1625505629512,15.48916768,33604.0,33603.0,27.44168731]
[1625505629608,15.48916768,33604.0,33603.0,22.12118731]
[1625505633518,20.81506768,33604.0,33603.0,22.12118731]
[1625505634673,20.81506768,33604.0,33603.0,22.18018731]
[1625505636974,20.81506768,33604.0,33603.0,27.65258731]
[1625505637075,20.81506768,33604.0,33603.0,22.18018731]
[1625505638127,20.81506768,33604.0,33603.0,27.00378731]
[1625505638226,20.81506768,33604.0,33603.0,22.18018731]
[1625505639277,25.27446768,33604.0,33603.0,26.57468731]
[1625505639377,20.81506768,33604.0,33603.0,22.18018731]
[1625505639830,20.81506768,33604.0,33603.0,26.57438731]
[1625505639928,20.81506768,33604.0,33603.0,22.18018731]
[1625505641182,20.81506768,33604.0,33603.0,26.78868731]
[1625505641282,20.81506768,33604.0,33603.0,22.18018731]
[1625505643287,20.81506768,33604.0,33603.0,22.26818731]
[1625505643387,20.81506768,33604.0,33603.0,22.18018731]
[1625505643488,20.81506768,33604.0,33603.0,22.12118731]
[1625505643587,3.76126768,33604.0,33603.0,22.12118731]
[1625505643688,3.52069224,33604.0,33603.0,22.12118731]
[1625505643789,3.52069224,33604.0,33603.0,23.70651845]
[1625505643888,3.52069224,33604.0,33603.0,23.71688914]
[1625505644139,3.52069224,33604.0,33603.0,23.72570523]
[1625505644391,2.28814107,33604.0,33603.0,23.72570523]
[1625505645443,2.28814107,33604.0,33603.0,23.71688914]
[1625505645543,1.23212231,33604.0,33603.0,23.71688914]
[1625505645794,1.23212231,33604.0,33603.0,23.72570507]
[1625505646046,1.23212231,33604.0,33603.0,23.71688914]
[1625505647049,1.23212231,33604.0,33603.0,23.72570499]
[1625505648049,0.52805114,33604.0,33603.0,23.72570499]
[1625505648902,0.87981294,33604.0,33603.0,23.72570499]
[1625505649654,0.87981294,33604.0,33603.0,23.71688914]
[1625505650557,0.87981294,33604.0,33603.0,23.72570476]
[1625505650759,0.52757744,33604.0,33603.0,23.72570476]
[1625505651059,0.08801112,33604.0,33603.0,23.72570476]
[1625505651510,0.26385374,33604.0,33603.0,23.72570476]
[1625505652208,0.08801112,33604.0,33603.0,23.72570476]
[1625505652438,0.08801112,33604.0,33603.0,23.78470476]
[1625505652524,0.08800703,33605.0,33603.0,25.54502071]
[1625505652742,0.08800703,33605.0,33604.0,0.01036283]
[1625505652914,0.26386177,33606.0,33604.0,6.65443377]
[1625505653116,0.26386177,33606.0,33605.0,0.01036064]
[1625505653214,0.26386177,33606.0,33605.0,0.06936064]
[1625505653329,0.26386177,33606.0,33605.0,0.12836064]
[1625505653413,0.87873027,33607.0,33605.0,6.65330716]
[1625505653414,0.08803919,33607.0,33605.0,6.65330716]
[1625505653526,0.08803919,33607.0,33606.0,0.25093616]
[1625505653720,0.08803919,33607.0,33606.0,0.31406075]
[1625505653815,0.08803919,33607.0,33606.0,0.37306075]
[1625505654052,0.08803919,33607.0,33606.0,6.885073]
[1625505654249,0.08803919,33607.0,33606.0,6.89388733]
[1625505654362,0.44317141,33608.0,33607.0,0.01035587]
[1625505654538,0.44317141,33608.0,33607.0,0.12835587]
[1625505654620,1.05453727,33610.0,33607.0,0.12835587]
[1625505654621,0.17595342,33610.0,33607.0,0.12835587]
[1625505654718,0.17595342,33610.0,33607.0,0.14129278]
[1625505654917,0.17595342,33610.0,33608.0,0.01034687]
[1625505655019,0.17595342,33610.0,33608.0,0.08228289]
[1625505655121,0.17595342,33610.0,33609.0,0.01034425]
[1625505655318,1.12220688,33615.0,33609.0,12.91086294]
[1625505655519,1.12220688,33615.0,33614.0,0.72172632]
[1625505655619,1.12220688,33615.0,33614.0,1.02701632]
[1625505655717,1.12220688,33615.0,33614.0,1.09635549]
[1625505655816,0.9461,33615.0,33614.0,9.35737828]
[1625505655918,0.9461,33615.0,33614.0,13.93487828]
[1625505656118,0.5279452,33618.0,33614.0,13.93487828]
[1625505656317,0.5279452,33618.0,33615.0,0.01032813]
[1625505656417,0.52745403,33620.0,33615.0,0.01032813]
[1625505656516,0.52745403,33620.0,33615.0,0.12832813]
[1625505656619,0.52745403,33620.0,33616.0,0.01445094]
[1625505656717,0.52745403,33620.0,33616.0,0.13245094]
[1625505656867,0.52745403,33620.0,33619.0,6.49283459]
[1625505656967,0.52745403,33620.0,33619.0,6.61083459]
[1625505657066,0.52745403,33620.0,33619.0,11.26195719]
[1625505657269,0.76765107,33621.0,33619.0,9.68261905]
[1625505657538,0.76765107,33621.0,33620.0,0.24057544]
[1625505657620,0.76765107,33621.0,33620.0,0.30369794]
[1625505657821,0.24057544,33621.0,33620.0,5.21343082]
[1625505658524,0.24057544,33621.0,33620.0,5.27243082]
[1625505658644,0.24057544,33621.0,33620.0,5.21343082]
[1625505658722,0.24057544,33621.0,33620.0,5.27243082]
[1625505658922,0.24057544,33621.0,33620.0,5.21343082]
[1625505662130,0.24057544,33621.0,33620.0,3.81065]
[1625505663387,0.24057544,33621.0,33620.0,3.8065275]
[1625505663688,0.24057544,33621.0,33620.0,2.57909428]
[1625505664189,0.29957544,33621.0,33620.0,2.57909428]
[1625505664638,0.29957544,33621.0,33620.0,2.52009428]
[1625505664838,1.52656808,33621.0,33620.0,0.76661825]
[1625505665339,2.57793473,33621.0,33620.0,0.76661825]
[1625505665741,2.57793473,33621.0,33620.0,0.82561825]
[1625505665842,2.57793473,33621.0,33620.0,0.76661825]
[1625505665942,2.57793473,33621.0,33620.0,0.24057544]
[1625505666797,2.57793473,33621.0,33620.0,0.29957544]
[1625505668955,2.57793473,33621.0,33619.0,0.52565654]
[1625505669450,3.50044876,33620.0,33616.0,0.52556054]
[1625505669549,0.24057544,33617.0,33616.0,0.52556054]
[1625505669650,0.57542544,33617.0,33616.0,0.52556054]
[1625505669749,0.63442544,33617.0,33616.0,0.52556054]
[1625505670050,2.90861289,33617.0,33614.0,0.76616787]
[1625505670151,3.7044,33615.0,33614.0,0.76616787]
[1625505670251,3.7634,33615.0,33614.0,0.76616787]
[1625505670451,4.98675029,33615.0,33614.0,0.24057544]
[1625505671556,5.22732573,33615.0,33614.0,0.24057544]
[1625505671758,6.27522176,33615.0,33614.0,0.24057544]
[1625505676565,6.27522176,33615.0,33614.0,0.24470271]
[1625505677366,6.27522176,33615.0,33614.0,0.24057544]
[1625505677920,6.27522176,33615.0,33614.0,0.24470278]
[1625505678878,6.27522176,33615.0,33614.0,0.52644278]
[1625505680481,6.27522176,33615.0,33614.0,0.58544278]
[1625505680685,2.57082176,33615.0,33614.0,0.58544278]
[1625505680783,2.51182176,33615.0,33614.0,0.58544278]
[1625505681338,2.51182176,33615.0,33614.0,5.53974278]
[1625505681441,0.24057544,33615.0,33614.0,9.04368184]
[1625505681634,0.24057544,33615.0,33614.0,9.28425728]
[1625505681835,0.24057544,33615.0,33614.0,10.68576169]
[1625505683411,0.24057544,33619.0,33614.0,10.74476169]
[1625505683515,0.24057544,33619.0,33615.0,0.059]
[1625505683686,0.24057544,33619.0,33618.0,0.24057544]
[1625505683789,0.24057544,33619.0,33618.0,3.8031645]
[1625505684089,0.24057544,33619.0,33618.0,3.80729018]
[1625505684493,0.24057544,33619.0,33618.0,3.74829018]
[1625505684494,0.29957544,33619.0,33618.0,3.74829018]
[1625505684842,5.55997544,33619.0,33618.0,3.74829018]
[1625505684944,6.78273642,33619.0,33618.0,0.77023948]
[1625505685543,5.55997544,33619.0,33618.0,0.00412568]
[1625505685643,5.80055088,33619.0,33614.0,0.24057544]
[1625505686145,5.80055088,33619.0,33615.0,0.00412714]
[1625505686346,1.22109704,33617.0,33615.0,0.00412714]
[1625505686445,1.28009704,33617.0,33615.0,0.00412714]
[1625505686549,1.28009704,33617.0,33615.0,0.06312714]
[1625505686746,0.52341132,33616.0,33615.0,0.06312714]
[1625505686846,2.32688317,33616.0,33615.0,0.06312714]
[1625505686946,2.32688317,33616.0,33615.0,0.059]
[1625505687195,2.32688317,33616.0,33615.0,0.0631273]
[1625505687648,3.78861072,33616.0,33615.0,0.0631273]
[1625505688154,3.78861072,33616.0,33615.0,0.0041273]
[1625505688702,8.54251072,33616.0,33615.0,0.0041273]
[1625505689201,8.54251072,33616.0,33615.0,0.0631273]
[1625505690153,3.78861072,33616.0,33615.0,0.0631273]
[1625505691004,3.78861072,33616.0,33615.0,0.58889525]
[1625505691005,2.56745861,33616.0,33615.0,0.58889525]
[1625505691454,2.56745861,33616.0,33615.0,0.0631273]
[1625505691707,1.52081038,33616.0,33615.0,0.58892728]
[1625505692305,1.52081038,33616.0,33615.0,0.83138728]
[1625505692510,1.52081038,33616.0,33615.0,1.53247418]
[1625505697515,1.52081038,33616.0,33615.0,2.58459359]
[1625505697715,1.52081038,33616.0,33615.0,2.82516903]
[1625505701320,0.29957544,33616.0,33615.0,2.82516903]
[1625505701871,1.52116662,33616.0,33615.0,2.82516903]
[1625505701970,1.52116662,33616.0,33615.0,2.82104173]
[1625505702122,1.52116662,33616.0,33615.0,2.82516627]
[1625505702220,2.56822448,33616.0,33615.0,2.82516627]
[1625505702422,2.56822448,33616.0,33615.0,2.58459083]
[1625505703724,2.56822448,33616.0,33615.0,1.53247142]
[1625505704276,3.78930921,33616.0,33615.0,1.53247142]
[1625505708337,3.78930921,33616.0,33615.0,2.58603973]
[1625505712103,8.60450921,33616.0,33615.0,2.58603973]
[1625505712906,5.11477544,33616.0,33615.0,0.30558454]
[1625505713254,8.60363475,33616.0,33615.0,2.58911705]
[1625505714658,8.60363475,33616.0,33615.0,3.81867186]
[1625505714659,7.38260375,33616.0,33615.0,3.81867186]
[1625505715760,7.38260375,33616.0,33615.0,4.0592473]
[1625505717265,8.60411679,33616.0,33615.0,4.0592473]
[1625505717515,8.60411679,33616.0,33615.0,4.05512276]
[1625505717819,8.60411679,33616.0,33615.0,4.05924863]
[1625505719674,8.60411679,33616.0,33615.0,4.00024863]
[1625505719773,8.92002679,33616.0,33615.0,3.75967319]
[1625505719874,10.31645376,33616.0,33615.0,2.28765838]
[1625505720677,10.31645376,33616.0,33615.0,2.34665838]
[1625505720926,10.31645376,33616.0,33615.0,2.28765838]
[1625505722879,10.33152881,33616.0,33615.0,2.28765838]
[1625505723079,11.90358965,33616.0,33615.0,1.2337203]
[1625505723331,11.8885146,33616.0,33615.0,1.2337203]
[1625505723430,10.31645376,33616.0,33615.0,2.28921203]
[1625505723629,10.33152885,33616.0,33615.0,2.28921203]
[1625505723783,11.90365957,33616.0,33615.0,1.2337203]
[1625505723883,11.88858448,33616.0,33615.0,1.2337203]
[1625505725987,11.90366001,33616.0,33615.0,1.2337203]
[1625505726289,11.90366001,33616.0,33615.0,0.53109491]
[1625505727289,11.90366001,33616.0,33615.0,0.00412587]
[1625505731607,11.90366001,33616.0,33614.0,0.00412421]
[1625505731909,0.24057544,33615.0,33614.0,0.00412421]
[1625505732108,0.29957544,33615.0,33614.0,0.00412421]
[1625505732458,6.74279546,33615.0,33614.0,0.00412421]
[1625505733362,6.74279546,33615.0,33614.0,0.53188932]
[1625505734215,6.74279546,33615.0,33614.0,1.23552714]
[1625505734966,6.74279546,33615.0,33614.0,0.53188932]
[1625505736571,6.74279546,33615.0,33614.0,1.23547727]
[1625505737370,5.17560572,33615.0,33614.0,1.23547727]
[1625505739376,5.17560572,33615.0,33614.0,1.29447727]
[1625505739981,5.17560572,33615.0,33614.0,1.53505271]
[1625505740073,5.17560572,33615.0,33614.0,3.82131287]
[1625505740423,3.78252883,33615.0,33614.0,3.82131287]
[1625505741528,3.78252883,33615.0,33614.0,3.76231287]
[1625505742180,5.17632059,33615.0,33614.0,3.76231287]
[1625505743689,5.17632059,33615.0,33614.0,2.53124971]
[1625505745489,5.17632059,33615.0,33614.0,2.59024971]
[1625505745990,5.17632059,33615.0,33614.0,3.82192147]
[1625505746091,5.17632059,33615.0,33614.0,4.09902147]
[1625505749402,5.17632059,33615.0,33614.0,3.82192147]
[1625505749605,5.41299059,33615.0,33614.0,3.76292147]
[1625505749811,5.41299059,33615.0,33614.0,2.53124971]
[1625505750015,5.41299059,33615.0,33614.0,2.29067427]
[1625505750402,5.42807598,33615.0,33614.0,2.29067427]
[1625505750704,5.48707598,33615.0,33614.0,0.39585508]
[1625505751005,7.04954085,33615.0,33614.0,0.39585508]
[1625505751114,7.04954085,33615.0,33612.0,0.52791462]
[1625505751465,0.01509982,33614.0,33612.0,0.52791462]
[1625505751557,0.01509982,33614.0,33604.0,1.47247929]
[1625505751558,5.89385289,33613.0,33604.0,1.47247929]
[1625505751661,5.89385289,33613.0,33604.0,1.23190385]
[1625505751753,5.95285289,33613.0,33604.0,1.23190385]
[1625505751853,6.01185289,33613.0,33604.0,1.23190385]
[1625505752053,1.80089378,33608.0,33606.0,0.00412058]
[1625505752156,2.05490378,33608.0,33606.0,0.00412058]
[1625505752254,2.11390378,33608.0,33606.0,0.00412058]
[1625505752704,3.695,33607.0,33606.0,0.00412058]
[1625505752804,6.29549187,33607.0,33606.0,0.00412058]
[1625505752903,6.35449187,33607.0,33606.0,0.00412058]
[1625505754054,6.59506731,33607.0,33606.0,0.00412058]
[1625505756113,6.59506731,33607.0,33606.0,0.24469602]
[1625505761924,6.59506731,33607.0,33606.0,0.24057544]
[1625505767034,3.99457544,33607.0,33606.0,0.24057544]
[1625505767433,6.59397622,33607.0,33606.0,0.24057544]
[1625505768683,6.91224622,33607.0,33601.0,1.22952985]
[1625505769086,6.97124622,33607.0,33601.0,1.22952985]
[1625505769686,2.5952178,33602.0,33600.0,0.24057544]
[1625505769785,2.6542178,33602.0,33600.0,0.24057544]
[1625505770088,2.6542178,33602.0,33597.0,1.22928014]
[1625505770089,3.0767037,33601.0,33597.0,1.22928014]
[1625505770186,3.0767037,33601.0,33596.0,0.24057544]
[1625505770286,3.1357037,33601.0,33596.0,0.24057544]
[1625505770387,3.1357037,33601.0,33595.0,1.2293249]
[1625505770488,1.21056283,33599.0,33595.0,1.2293249]
[1625505770687,1.59482283,33599.0,33595.0,1.2293249]
[1625505770786,5.1976,33596.0,33595.0,1.2293249]
[1625505770890,5.1976,33596.0,33593.0,0.24057544]
[1625505771087,5.2566,33596.0,33593.0,0.24057544]
[1625505771188,5.2566,33596.0,33594.0,0.00411875]
[1625505771639,6.46598401,33596.0,33594.0,0.00411875]
[1625505772089,0.24057544,33595.0,33594.0,0.00411875]
[1625505772291,0.29957544,33595.0,33594.0,0.00411875]
[1625505772491,0.29957544,33595.0,33593.0,0.24057544]
[1625505773542,0.29957544,33595.0,33594.0,0.00411881]
[1625505773792,0.29957544,33595.0,33593.0,0.24057544]
[1625505774041,0.29957544,33595.0,33594.0,0.00411882]
[1625505774393,0.29957544,33595.0,33594.0,0.35081869]
[1625505775395,0.29957544,33595.0,33594.0,0.35493728]
[1625505775698,0.29957544,33595.0,33594.0,0.35081869]
[1625505776751,0.29957544,33595.0,33593.0,0.59127563]
[1625505776851,0.29957544,33595.0,33593.0,7.563e-05]
[1625505776959,0.61992544,33595.0,33589.0,1.22745065]
[1625505777169,0.61992544,33595.0,33592.0,0.3507367]
[1625505777453,0.61992544,33595.0,33592.0,0.6705067]
[1625505777553,0.29957544,33595.0,33592.0,0.6705067]
[1625505777716,2.58184308,33593.0,33592.0,0.37877]
[1625505777752,6.53884308,33593.0,33592.0,0.37877]
[1625505777851,6.53884308,33593.0,33592.0,0.31977]
[1625505777952,6.59784308,33593.0,33592.0,0.31977]
[1625505778155,5.46144702,33593.0,33592.0,0.31977]
[1625505778256,5.77054702,33593.0,33592.0,0.31977]
[1625505778555,5.77054702,33593.0,33585.0,1.22713832]
[1625505778658,7.14822571,33593.0,33587.0,0.35061823]
[1625505778858,7.20722571,33593.0,33587.0,0.35061823]
[1625505779157,1.2040144,33588.0,33582.0,0.24057544]
[1625505779356,1.2630144,33588.0,33582.0,0.24057544]
[1625505779456,1.2630144,33588.0,33582.0,0.29957544]
[1625505779656,1.2630144,33588.0,33583.0,0.00411994]
[1625505780109,1.2630144,33588.0,33583.0,0.06311994]
[1625505780208,0.48115088,33584.0,33583.0,0.06311994]
[1625505780309,0.81726088,33584.0,33583.0,0.06311994]
[1625505780407,0.93526088,33584.0,33583.0,0.00411994]
[1625505781360,0.87626088,33584.0,33583.0,0.00411994]
[1625505782013,0.87626088,33584.0,33583.0,0.06311994]
[1625505782166,0.54015088,33584.0,33583.0,0.06311994]
[1625505782215,0.48115088,33584.0,33583.0,0.06311994]
[1625505782465,0.54015088,33584.0,33583.0,0.06311994]
[1625505782666,0.54015088,33584.0,33583.0,1.11341395]
[1625505783923,0.54015088,33584.0,33583.0,0.06311994]
[1625505784268,0.54015088,33584.0,33583.0,0.00411994]
[1625505784670,5.49525088,33584.0,33583.0,0.00411994]
[1625505786624,0.54015088,33584.0,33583.0,0.00411994]
[1625505786823,0.54015088,33584.0,33583.0,0.06311994]
[1625505787025,0.54015088,33584.0,33583.0,0.37313994]
[1625505792537,0.48115088,33584.0,33583.0,0.37313994]
[1625505792638,0.24057544,33593.0,33583.0,0.37313994]
[1625505792738,0.24057544,33593.0,33583.0,1.4218493]
[1625505792837,0.29957544,33593.0,33583.0,1.4218493]
[1625505792938,0.29957544,33593.0,33584.0,0.00411876]
[1625505793140,0.29957544,33593.0,33585.0,1.04865721]
[1625505793340,0.29957544,33593.0,33585.0,1.10765721]
[1625505793439,0.29957544,33593.0,33585.0,1.11177565]
[1625505793540,4.0257,33591.0,33585.0,1.11177565]
[1625505793640,4.0257,33591.0,33587.0,1.04861883]
[1625505793740,4.0847,33591.0,33587.0,1.04861883]
[1625505793839,4.0847,33591.0,33587.0,1.10761883]
[1625505793939,4.0847,33591.0,33588.0,0.00411846]
[1625505794089,4.0847,33591.0,33588.0,0.06311846]
[1625505794293,4.0847,33591.0,33590.0,0.24057544]
[1625505794392,4.0847,33591.0,33590.0,0.59739544]
[1625505794742,4.0847,33591.0,33590.0,0.60151392]
[1625505796244,0.059,33591.0,33590.0,0.60151392]
[1625505805815,0.059,33591.0,33590.0,0.24469392]
[1625505806076,0.059,33591.0,33590.0,0.00411848]
[1625505806222,0.118,33591.0,33590.0,0.00411848]
[1625505806316,0.35857544,33591.0,33590.0,0.00411848]
[1625505806631,1.38691215,33591.0,33590.0,0.00411848]
[1625505806914,1.38691215,33591.0,33585.0,0.00411907]
[1625505807014,2.5866733,33591.0,33585.0,0.00411907]
[1625505807225,2.5866733,33591.0,33590.0,0.00411915]
[1625505807315,0.35857544,33591.0,33590.0,0.00411915]
[1625505807412,0.35857544,33591.0,33585.0,0.00411915]
[1625505807611,3.6991,33587.0,33585.0,0.00411915]
[1625505807713,3.6991,33587.0,33584.0,0.17510707]
[1625505807811,3.7581,33587.0,33584.0,0.17510707]
[1625505807962,3.7581,33587.0,33585.0,0.00411916]
[1625505808163,0.17164343,33586.0,33585.0,0.00411916]
[1625505808263,0.39363343,33586.0,33585.0,0.00411916]
[1625505808361,0.69320887,33586.0,33585.0,0.00411916]
[1625505809514,0.69320887,33586.0,33585.0,0.17940598]
[1625505809870,0.52156544,33586.0,33585.0,0.00411916]
[1625505810220,0.52156544,33586.0,33585.0,0.17947689]
[1625505810321,0.76214088,33586.0,33585.0,0.17947689]
[1625505811020,1.44873222,33586.0,33585.0,0.17947689]
[1625505811520,0.76214088,33586.0,33585.0,0.17947689]
[1625505812070,1.44863285,33586.0,33585.0,0.17947689]
[1625505812621,0.76214088,33586.0,33585.0,0.17947689]
[1625505813373,1.44870821,33586.0,33585.0,0.17947689]
[1625505818786,1.44870821,33586.0,33585.0,0.00411916]
[1625505819686,2.47916307,33586.0,33585.0,0.00411916]
[1625505820638,2.47916307,33586.0,33585.0,0.1796249]
[1625505822237,1.44870821,33586.0,33585.0,0.1796249]
[1625505822739,1.44870821,33586.0,33585.0,0.17550574]
[1625505822942,1.44870821,33586.0,33585.0,0.17965834]
[1625505824543,2.65144719,33586.0,33585.0,0.0041526]
[1625505826196,2.65144719,33586.0,33585.0,0.70701045]
[1625505829453,4.02988965,33586.0,33585.0,0.70701045]
[1625505829854,4.02988965,33586.0,33585.0,0.0041526]
[1625505832506,4.02988965,33586.0,33585.0,0.70769749]
[1625505834162,2.65144719,33586.0,33585.0,1.76303238]
[1625505838872,4.02959193,33586.0,33585.0,1.76303238]
[1625505840377,4.0447091,33586.0,33585.0,1.76303238]
[1625505840975,4.56190015,33586.0,33585.0,1.23555784]
[1625505843032,4.54678298,33586.0,33585.0,1.23555784]
[1625505843632,4.54678298,33586.0,33585.0,2.29125781]
[1625505844389,4.54678298,33586.0,33585.0,1.23555784]
[1625505844687,4.54678298,33586.0,33585.0,2.29124791]
[1625505847994,4.54678298,33586.0,33585.0,1.23555784]
[1625505848543,4.54678298,33586.0,33585.0,2.29120456]
[1625505848994,4.54678298,33586.0,33585.0,0.53201295]
[1625505852454,4.54678298,33586.0,33585.0,1.23571809]
[1625505853604,4.54678298,33586.0,33585.0,1.51153809]
[1625505854006,4.54678298,33586.0,33585.0,2.56717762]
[1625505854455,3.344044,33586.0,33585.0,3.79870188]
[1625505854555,1.74390926,33586.0,33585.0,3.79870188]
[1625505855661,2.94922983,33586.0,33585.0,2.56717762]
[1625505856109,2.94922983,33586.0,33585.0,3.79907564]
[1625505858666,4.67521367,33586.0,33585.0,3.52325564]
[1625505858866,4.58501367,33586.0,33585.0,3.52325564]
[1625505859337,4.58501367,33586.0,33585.0,2.29135762]
[1625505859829,4.58501367,33586.0,33585.0,1.23571809]
[1625505861524,6.13470079,33586.0,33585.0,0.53201295]
[1625505864786,6.13470079,33586.0,33585.0,1.23693766]
[1625505865988,6.22440079,33586.0,33585.0,1.23693766]
[1625505866088,6.28340079,33586.0,33585.0,1.23693766]
[1625505866289,6.28340079,33586.0,33585.0,1.10573766]
[1625505866491,6.28340079,33586.0,33585.0,0.17628498]
[1625505866691,6.19370079,33586.0,33585.0,0.17628498]
[1625505867091,6.19370079,33586.0,33585.0,0.26441756]
[1625505867491,6.19370079,33586.0,33585.0,0.21421756]
[1625505867691,6.28400079,33586.0,33585.0,0.21421756]
[1625505867840,6.19370079,33586.0,33585.0,0.21421756]
[1625505868695,6.19370079,33586.0,33585.0,0.12608498]
[1625505869144,6.19370079,33586.0,33585.0,0.21420992]
[1625505869344,6.28270079,33586.0,33585.0,0.21420992]
[1625505870345,6.19370079,33586.0,33585.0,0.21420992]
[1625505871398,6.28170079,33586.0,33585.0,0.21420992]
[1625505871700,6.19370079,33586.0,33585.0,0.21420992]
[1625505872150,6.19370079,33586.0,33585.0,0.09520992]
[1625505872250,6.19370079,33586.0,33585.0,0.03550992]
[1625505873401,6.19370079,33586.0,33582.0,0.70479597]
[1625505873902,6.19370079,33586.0,33583.0,0.0041998]
[1625505874002,0.85658088,33586.0,33583.0,0.0041998]
[1625505874454,5.86644257,33584.0,33583.0,0.0041998]
[1625505874654,5.92544257,33584.0,33583.0,0.0041998]
[1625505874755,6.16601801,33584.0,33583.0,0.0041998]
[1625505875406,9.78531801,33584.0,33583.0,0.0041998]
[1625505877708,9.78531801,33584.0,33583.0,0.70886739]
[1625505878114,9.78531801,33584.0,33583.0,0.0041998]
[1625505878614,9.87491801,33584.0,33583.0,0.0041998]
[1625505878863,9.78531801,33584.0,33583.0,0.0041998]
[1625505880565,9.84431801,33584.0,33583.0,0.0041998]
[1625505882518,9.84431801,33584.0,33582.0,0.00419806]
[1625505882769,0.24057544,33583.0,33582.0,0.00419806]
[1625505882971,0.29957544,33583.0,33582.0,0.00419806]
[1625505883069,6.15683068,33583.0,33582.0,0.00419806]
[1625505887137,4.60643649,33583.0,33582.0,0.70860166]
[1625505888142,4.60643649,33583.0,33582.0,2.06442298]
[1625505888745,4.54743649,33583.0,33582.0,2.06442298]
[1625505888946,4.60643649,33583.0,33582.0,2.06442298]
[1625505889044,0.29957544,33583.0,33582.0,2.06442298]
[1625505889245,0.29957544,33583.0,33582.0,2.07324424]
[1625505889345,2.19856307,33583.0,33582.0,4.71449391]
[1625505889745,3.2344764,33583.0,33582.0,4.71449391]
[1625505890297,3.2344764,33583.0,33582.0,3.30582742]
[1625505890496,3.2344764,33583.0,33582.0,3.29700616]
[1625505890796,3.2344764,33583.0,33582.0,4.70562173]
[1625505891195,3.2344764,33583.0,33582.0,3.29700616]
[1625505893053,3.2344764,33583.0,33582.0,3.35600616]
[1625505893149,3.2344764,33583.0,33582.0,3.29700616]
[1625505894202,3.2344764,33583.0,33582.0,4.70563952]
[1625505894303,2.0260768,33583.0,33582.0,4.70563952]
[1625505894753,2.0260768,33583.0,33582.0,4.76463952]
[1625505895154,1.3965601,33584.0,33582.0,4.76463952]
[1625505895553,1.3965601,33584.0,33583.0,0.00418996]
[1625505895653,1.3965601,33584.0,33583.0,0.06318996]
[1625505895858,1.3965601,33584.0,33583.0,2.70431404]
[1625505895859,0.18800834,33584.0,33583.0,2.70431404]
[1625505896505,1.2094059,33587.0,33583.0,2.70431404]
[1625505896605,1.2684059,33587.0,33583.0,2.70431404]
[1625505896805,1.2684059,33587.0,33586.0,1.71362863]
[1625505896905,1.2684059,33587.0,33586.0,1.77262863]
[1625505897105,1.2684059,33587.0,33586.0,1.77681851]
[1625505898180,1.2684059,33587.0,33586.0,1.71781851]
[1625505898961,2.6501003,33587.0,33586.0,0.48534076]
[1625505903424,2.6501003,33587.0,33586.0,0.73113076]
[1625505903825,2.6501003,33587.0,33586.0,1.96342032]
[1625505904026,2.5911003,33587.0,33586.0,1.96342032]
[1625505904128,1.2094059,33587.0,33586.0,1.96342032]
[1625505906485,1.2094059,33587.0,33586.0,2.02242032]
[1625505906794,5.9e-06,33587.0,33586.0,2.02242032]
[1625505906997,1.62499374,33591.0,33586.0,3.43014957]
[1625505907085,1.62499374,33591.0,33586.0,3.48914957]
[1625505907290,0.24057544,33591.0,33588.0,1.40771324]
[1625505907432,0.24057544,33591.0,33588.0,1.52571324]
[1625505907835,0.24057544,33591.0,33589.0,0.00419933]
[1625505907933,0.24057544,33591.0,33589.0,0.06319933]
[1625505908034,0.24057544,33591.0,33589.0,0.12219933]
[1625505908333,0.24057544,33591.0,33590.0,0.00419841]
[1625505908434,0.24057544,33591.0,33590.0,0.06319841]
[1625505908884,0.24057544,33591.0,33590.0,0.30377385]
[1625505909449,0.24057544,33591.0,33590.0,0.36277385]
[1625505909535,0.24057544,33591.0,33590.0,0.30377385]
[1625505909642,0.24057544,33591.0,33590.0,1.77007242]
[1625505910036,0.24057544,33591.0,33590.0,0.36277385]
[1625505911892,0.24057544,33591.0,33590.0,1.76926747]
[1625505912545,0.24057544,33591.0,33590.0,0.36277385]
[1625505914399,0.24057544,33591.0,33590.0,0.30377385]
[1625505919562,0.24057544,33591.0,33590.0,0.312593]
[1625505919661,1.61902542,33595.0,33590.0,0.312593]
[1625505919864,1.61902542,33595.0,33592.0,0.35129531]
[1625505920463,1.61902542,33595.0,33593.0,0.0145188]
[1625505923018,1.61902542,33595.0,33594.0,0.05775642]
[1625505923168,0.24057544,33595.0,33594.0,0.05775642]
[1625505923268,0.24057544,33595.0,33594.0,0.07227522]
[1625505923820,1.61887344,33595.0,33594.0,0.07227522]
[1625505925374,2.65241999,33595.0,33594.0,0.07227522]
[1625505926275,2.74141999,33595.0,33594.0,0.07227522]
[1625505926423,2.65241999,33595.0,33594.0,0.07227522]
[1625505927275,3.85864969,33595.0,33594.0,0.07227522]
[1625505928680,4.16455969,33595.0,33594.0,0.07227522]
[1625505931087,4.16455969,33595.0,33594.0,0.0145188]
[1625505931190,4.22355969,33595.0,33594.0,0.0145188]
[1625505931290,4.28255969,33595.0,33594.0,0.0145188]
[1625505931482,4.37255969,33595.0,33594.0,0.0145188]
[1625505931556,4.37255969,33595.0,33593.0,0.01445841]
[1625505931737,4.37255969,33595.0,33590.0,0.04410125]
[1625505931738,4.37255969,33595.0,33594.0,0.01445886]
[1625505931839,4.37255969,33595.0,33590.0,0.39540204]
[1625505932039,4.37255969,33595.0,33591.0,0.00563853]
[1625505932362,4.37255969,33595.0,33591.0,0.01445933]
[1625505932363,0.75448544,33595.0,33591.0,0.01445933]
[1625505932464,0.66448544,33595.0,33591.0,0.01445933]
[1625505932941,0.66448544,33595.0,33586.0,0.01445959]
[1625505933046,0.72172632,33587.0,33586.0,0.01445959]
[1625505933142,1.10828632,33587.0,33586.0,0.01445959]
[1625505933242,1.16728632,33587.0,33586.0,0.01445959]
[1625505933544,2.20011868,33587.0,33586.0,0.01445959]
[1625505933644,3.40506108,33587.0,33586.0,0.01445959]
[1625505934045,4.78338815,33587.0,33586.0,0.01445959]
[1625505936049,3.40506108,33587.0,33586.0,0.36590173]
[1625505937402,4.78406225,33587.0,33586.0,0.36590173]
[1625505938206,1.16728632,33587.0,33586.0,0.01445959]
[1625505938460,1.16728632,33587.0,33583.0,0.03200327]
[1625505938655,4.78731752,33587.0,33586.0,0.35148232]
[1625505938756,4.45975752,33587.0,33586.0,0.35148232]
[1625505939055,4.45975752,33587.0,33586.0,0.36584335]
[1625505946675,4.68497752,33587.0,33586.0,0.36584335]
[1625505947274,3.65065827,33587.0,33586.0,0.36584335]
[1625505947375,1.06494632,33587.0,33586.0,0.36584335]
[1625505947524,3.65123639,33587.0,33586.0,0.36584335]
[1625505947978,4.68595506,33587.0,33586.0,0.36584335]
[1625505949678,4.62695506,33587.0,33586.0,0.36584335]
[1625505950884,4.62695506,33587.0,33586.0,0.01436103]
[1625505951235,4.62695506,33587.0,33585.0,0.03197689]
[1625505951538,4.62695506,33587.0,33586.0,0.01433467]